Workbook

Sheet ADA CONSTRUCTION FEB 2023 CAA
A1: DEPARTMENT OF TRANSPORTATION - CALTRANS
A2: DBE Commitment at Award (CAA) on Federally Funded Major Construction Contracts - October 1, 2023 - February 29, 2024
A4: Total Award Amount Year-to-Date (YTD) | C4: Total DBE Commitment Amount YTD | F4: Total Prime Contracts Awarded YTD
A5: 1151925052 | C5: =SUM(C7:C18) -> 263966066.1 | F5: =SUM(C214:C231,I214:I231,F214:F231) -> 64
A6: Groups | C6: Commitment Dollars YTD | D6: Firms YTD | E6: Contracts YTD | F6: % of Contracts | G6: % of DBE $ | H6: % of Total $
A7: Hispanic American Male | C7: =SUMIF(D30:D100,"m", C30:C100) -> 87262898.46 | D7: =COUNTIF(D30:D100,"M") -> 55 | E7: =SUMIF(D30:D100,"M",E30:E100) -> 135 | F7: =E7/E20 -> 0.2890792291 | G7: =C7/C5 -> 0.3305837745 | H7: =C7/A5 -> 0.07575397228
A8: Hispanic American Female | C8: =SUMIF(D30:D100,"F", C30:C100) -> 32568492.96 | D8: =COUNTIF(D30:D100,"F") -> 15 | E8: =SUMIF(D30:D100,"F",E30:E100) -> 65 | F8: =E8/E20 -> 0.1391862955 | G8: =C8/C5 -> 0.1233813628 | H8: =C8/A5 -> 0.02827310067
A9: African American Male | C9: =SUMIF(D116:D128,"m", C116:C128) -> 6586877 | D9: =COUNTIF(D116:D128,"M") -> 9 | E9: =SUMIF(D116:D128,"M",E116:E128) -> 16 | F9: =E9/E20 -> 0.03426124197 | G9: =C9/C5 -> 0.02495349913 | H9: =C9/A5 -> 0.00571814719
A10: African American Female | C10: =SUMIF(D116:D128,"F", C116:C128) -> 9459044.02 | D10: =COUNTIF(D116:D128,"F") -> 3 | E10: =SUMIF(D116:D128,"F",E116:E128) -> 13 | F10: =E10/E20 -> 0.0278372591 | G10: =C10/C5 -> 0.03583431825 | H10: =C10/A5 -> 0.008211509944
A11: Asian Pacific Male | C11: =SUMIF(D143:D155,"m", C143:C155) -> 10317547.51 | D11: =COUNTIF(D143:D155,"M") -> 7 | E11: =SUMIF(D143:D155,"M",E143:E155) -> 19 | F11: =E11/E20 -> 0.04068522484 | G11: =C11/C5 -> 0.03908664346 | H11: =C11/A5 -> 0.008956787155
A12: Asian Pacific Female | C12: =SUMIF(D143:D155,"F", C143:C155) -> 9058648.11 | D12: =COUNTIF(D143:D155,"F") -> 5 | E12: =SUMIF(D143:D155,"F",E143:E155) -> 23 | F12: =E12/E20 -> 0.04925053533 | G12: =C12/C5 -> 0.03431747211 | H12: =C12/A5 -> 0.007863921436
A13: Subcontinent Asian Male | C13: =SUMIF(D131:D140,"m", C131:C140) -> 19746222.32 | D13: =COUNTIF(D131:D140,"M") -> 7 | E13: =SUMIF(D131:D140,"M",E131:E140) -> 19 | F13: =E13/E20 -> 0.04068522484 | G13: =C13/C5 -> 0.07480591204 | H13: =C13/A5 -> 0.01714193322
A14: Subcontinent Asian Female | C14: =SUMIF(D131:D140,"F", C131:C140) -> 511555 | D14: =COUNTIF(D131:D140,"F") -> 2 | E14: =SUMIF(D131:D140,"F",E131:E140) -> 4 | F14: =E14/E20 -> 0.008565310493 | G14: =C14/C5 -> 0.001937957434 | H14: =C14/A5 -> 0.0004440870516
A15: Native American Male | C15: =SUMIF(D103:D113,"m", C103:C113) -> 13310861.12 | D15: =COUNTIF(D103:D113,"M") -> 7 | E15: =SUMIF(D103:D113,"M",E103:E113) -> 19 | F15: =E15/E20 -> 0.04068522484 | G15: =C15/C5 -> 0.05042641017 | H15: =C15/A5 -> 0.01155531872
A16: Native American Female | C16: =SUMIF(D103:D113,"F", C103:C113) -> 1733506.8 | D16: =COUNTIF(D103:D113,"F") -> 3 | E16: =SUMIF(D103:D113,"F",E103:E113) -> 3 | F16: =E16/E20 -> 0.006423982869 | G16: =C16/C5 -> 0.006567157763 | H16: =C16/A5 -> 0.001504878114
A17: Non Minority Women | C17: =SUMIF(D162:D209,"F", C162:C209) -> 72059486.88 | D17: =COUNTIF(D162:D209,"F") -> 48 | E17: =SUMIF(D162:D209,"F",E162:E209) -> 150 | F17: =E17/E20 -> 0.3211991435 | G17: =C17/C5 -> 0.272987691 | H17: =C17/A5 -> 0.06255570773
A18: Other Men | C18: =SUMIF(D158:D159,"m", C158:C159) -> 1350925.9 | D18: =COUNTIF(D158:D159,"M") -> 1 | E18: =SUMIF(D158:D159,"M",E158:E159) -> 1 | F18: =E18/E20 -> 0.002141327623 | G18: =C18/C5 -> 0.00511780139 | H18: =C18/A5 -> 0.001172755031
F19: =E19/E20 -> 0 | G19: =C19/C5 -> 0 | H19: =C19/A5 -> 0
A20: Total | C20: =SUM(C7:C18) -> 263966066.1 | D20: =SUM(D7:D19) -> 162 | E20: =SUM(E7:E19) -> 467
A21: Total Primes Contracts | C21: =SUM(C214:C231,I214:I231,F214:F231) -> 64
A23: Yellow = DBEs | C23: Green = Trucking | D23: 25 | E23: 37193812.92 | F23: 0.1409037664
A24: Red = Prime Contractor | C24: Blue = Supplier | D24: 29 | E24: 54228818 | F24: 0.205438596
A25: Red Italic = DBE firm as Prime | C25: White = Other | D25: 108 | E25: 172543435.2 | F25: 0.6536576376
A26: BOLD = women
A27: * = Used both as Trucking & Supplier
A29: Hispanic American | B29: Column1 | C29: Dollars | D29: M/F | E29: Contract | F29: Contract # | G29: Number of Primes | H29: Prime Name | I29: Districts
A30: 3P LANDSCAPING | B30: -4142 | C30: ='[1]Construction Worksheet'!G14 -> 1400555 | D30: M | E30: 3 | F30: =fetchcomment(E30) -> 08-1C5704 12-0N8904 06-0X3804 | G30: 3 | H30: =fetchcomment(G30) -> SEMA CONSTRUCTION INC SECURITY PAVING COMPANY, INC. GRIFFITH COMPANY | I30: 6,8,12
A31: A & M CONSULTING ENGINEERS | B31: -4142 | C31: ='[1]Construction Worksheet'!G19 -> 15600 | D31: M | E31: 1 | F31: =fetchcomment(E31) -> 10-1E3004 | G31: 1 | H31: =fetchcomment(G31) -> BAY CITIES PAVING & GRADING, INC. | I31: 10
A32: A STAR SWEEPING | B32: 43 | C32: ='[1]Construction Worksheet'!G32 -> 911830 | D32: M | E32: 11 | F32: =fetchcomment(E32) -> 01-0J6314 03-4H0704 01-0E11U4 03-1H9904 03-3H6104 | G32: 6 | H32: =fetchcomment(G32) -> GRANTIE CONSTRUCTION COMPANY DESILVA GATES CONSTRUCTION LLC A. TEICHERT & SON INC DBA TEICHERT CONSTRUCTION O.C. JONES & SONS INC BAY CITIES PAVING & GRADING INC CAL VALLEY CONSTRUCTION INC | I32: 1, 3,4,6
A33: ABSL CONSTRUCTION | B33: -4142 | C33: ='[1]Construction Worksheet'!G58 -> 4721765.6 | D33: M | E33: 12 | F33: =fetchcomment(E33) -> 01-0J6314 02-4H0204 03-4H0704 10-0G8304 01-0E11U4 03-1H9904 11-430254 03-1H6304 04-4J5404 05-1H3104 10-1E3004 04-1Q5814 01-0C55U4 03-2J3204 03-3H6104 04-1J9604 06-0X3004 06-1A4604 | G33: 9 | H33: =fetchcomment(G33) -> GRANTIE CONSTRUCTION COMPANY TULLIS INC DESILVA GATES CONSTRUCTION LLC VIKING CONSTRUCTION COMPANY A. TEICHERT & SON INC DBA TEICHERT CONSTRUCTION CSI/CJA A JOINT VENTURE O.C. JONES & SONS, INC. GHILOTTI BROS, INC. BAY CITIES PAVING & GRADING, INC. | I33: 1,2,3,4,10,11
A34: ALL STATE TRUCKING | B34: 43 | C34: ='[1]Construction Worksheet'!G74 -> 51260 | D34: M | E34: 1 | F34: =fetchcomment(E34) -> 08-1C5704 | G34: 1 | H34: =fetchcomment(G34) -> SEMA CONSTRUCTION | I34: 8
A35: ALCORN FENCE COMPANY | B35: -4142 | C35: ='[1]Construction Worksheet'!G63 -> 67989 | D35: M | E35: 1 | F35: =fetchcomment(E35) -> 07-322904 | G35: 1 | H35: =fetchcomment(G35) -> C. A. RASMUSSEN, INC. | I35: 7
A36: ALFARO GENERAL ENGINEERING | B36: -4142 | C36: ='[1]Construction Worksheet'!G69 -> 21070695.44 | D36: M | E36: 2 | F36: =fetchcomment(E36) -> 07-338604 | G36: 1 | H36: =fetchcomment(G36) -> ALFARO COMMUNICATIONS CONSTRUCTION, INC. | I36: 7,8
A37: ALTAMONT REBAR CORP | B37: -4142 | C37: ='[1]Construction Worksheet'!G79 -> 472500 | D37: M | E37: 1 | F37: =fetchcomment(E37) -> 04-2Q5704 | G37: 1 | H37: =fetchcomment(G37) -> DISNEY CONSTRUCTION, INC. | I37: 4
A38: ALVAREZ AND SHAW INC | B38: 43 | C38: ='[1]Construction Worksheet'!G83 -> 2183337 | D38: M | E38: 1 | F38: =fetchcomment(E38) -> 11-430304 | G38: 1 | H38: =fetchcomment(G38) -> SB GENERAL ENGINEERING | I38: 11
A39: ANCO IRON & CONSTRUCTION | C39: ='[1]Construction Worksheet'!G90 -> 295699.79 | D39: M | E39: 1 | F39: =fetchcomment(E39) -> 09-368004 | G39: 1 | H39: =fetchcomment(G39) -> PAPICH CONSTRUCITON COMPANY INC | I39: 9
A40: ARBISO TRANPORTATION INC | B40: 43 | C40: ='[1]Construction Worksheet'!G101 -> 1377920 | D40: M | E40: 3 | F40: =fetchcomment(E40) -> 02-3H6504 02-4H0204 02-4H0504 | G40: 2 | H40: =fetchcomment(G40) -> J.F. SHEA CONSTRUCTION INC TULLIS INC | I40: 2
A41: ARGUELLO CONCRETE CONSTRUCTION | C41: ='[1]Construction Worksheet'!G106 -> 110160 | D41: M | E41: 1 | F41: =fetchcomment(E41) -> 06-0X3004 | G41: 1 | H41: =fetchcomment(G41) -> BAY CITIES PAVING AND GRADING | I41: 6
A42: AUSTIN ENTERPRISE | B42: -4142 | C42: ='[1]Construction Worksheet'!C15 -> 3090778 | D42: F | E42: 8 | F42: =fetchcomment(E42) -> 10-0G8304 01-0E11U4 03-1H9904 11-430394 05-1H3104 10-1E3004 11-2T3434 03-3H6104 | G42: 7 | H42: =fetchcomment(G42) -> VIKING CONSTRUCTION COMPANY INC GRANITE CONSTRUCTION COMPANY A. TEICHERT & SON INC DBA TEICHERT CONSTRUCTION GRIFFITH COMPANY BAY CITIES PAVING & GRADING, INC. WALSH CONSTRUCTION COMPANY II, LLC DESILVA GATES CONSTRUCTION LLC | I42: 1,3,5,10,11
A43: BARGAS ENVIRONMENTAL CONSULTING | B43: -4142 | C43: ='[1]Construction Worksheet'!C23 -> 96990 | D43: F | E43: 2 | F43: =fetchcomment(E43) -> 03-4H0704 03-1H9904 | G43: 2 | H43: =fetchcomment(G43) -> DESILVA GATES CONSTRUCTION LLC A. TEICHERT & SON INC DBA TEICHERT CONSTRUCTION | I43: 3
A44: BAY LINE CUTTING AND CORING | B44: -4142 | C44: ='[1]Construction Worksheet'!G113 -> 20520 | D44: M | E44: 1 | F44: =fetchcomment(E44) -> 04-0K7804 | G44: 1 | H44: =fetchcomment(G44) -> GHILOTTI BROS INC | I44: 4
A45: BELLAGIO CONSTRUCITON | C45: ='[1]Construction Worksheet'!G118 -> 50547 | D45: M | E45: 1 | F45: =fetchcomment(E45) -> 06-0X3004 | G45: 1 | H45: =fetchcomment(G45) -> BAY CITIES PAVING AND GRADING | I45: 6
A46: BERT W. SALAS | B46: -4142 | C46: ='[1]Construction Worksheet'!G127 -> 715884 | D46: M | E46: 1 | F46: =fetchcomment(E46) -> 11-2T3434 | G46: 1 | H46: =fetchcomment(G46) -> WALSH CONSTRUCTION COMPANY II, LLC | I46: 11
A47: BRUCE ANDERSON | B47: -4142 | C47: ='[1]Construction Worksheet'!G132 -> 927740 | D47: M | E47: 1 | F47: =fetchcomment(E47) -> 07-320804 | G47: 1 | H47: =fetchcomment(G47) -> CALPROMAX ENGINEERING, INC. | I47: 7
A48: BT TRUCKING | B48: 43 | C48: ='[1]Construction Worksheet'!G140 -> 1740496.6 | D48: M | E48: 2 | F48: =fetchcomment(E48) -> 12-0S1504 03-3H6104 | G48: 2 | H48: =fetchcomment(G48) -> POWELL CONSTRUCTORS, INC DESILVA GATES CONSTRUCTOIN LLC | I48: 3,12
A49: C & N REINFORCING INC | B49: -4142 | C49: ='[1]Construction Worksheet'!G146 -> 679550.64 | D49: M | E49: 3 | F49: =fetchcomment(E49) -> 04-0K7804 04-4J5404 10-1E3004 | G49: 2 | H49: =fetchcomment(G49) -> BAY CITIES PAVING & GRADING, INC. GHILOTTI BROS, INC. | I49: 4
A50: CENTRAL COAST TRAFFIC SAFETY, INC. | B50: -4142 | C50: ='[1]Construction Worksheet'!G151 -> 852349.7 | D50: M | E50: 2 | F50: =fetchcomment(E50) -> 05-1H3104 09-368004 | G50: 2 | H50: =fetchcomment(G50) -> GRANITE CONSTRUCTION COMPANY PAPICH CONSTRUCITON COMPANY INC | I50: 5,9
A51: CHAVEZ TRUCKING | B51: 43 | C51: ='[1]Construction Worksheet'!C29 -> 2056114.65 | D51: F | E51: 1 | F51: =fetchcomment(E51) -> 04-1Q5814 | G51: 1 | H51: =fetchcomment(G51) -> BAY CITIES PAVING & GRADING, INC. | I51: 4
A52: COASTLINE SWEEPERS | B52: -4142 | C52: ='[1]Construction Worksheet'!C35 -> 55890 | D52: F | E52: 1 | F52: =fetchcomment(E52) -> 05-1H3104 | G52: 1 | H52: =fetchcomment(G52) -> GRANITE CONSTRUCTION COMPANY | I52: 5
A53: D.B. ELECTRIC, INC. | B53: -4142 | C53: ='[1]Construction Worksheet'!G156 -> 477570 | D53: M | E53: 1 | F53: =fetchcomment(E53) -> 07-351304 | G53: 1 | H53: =fetchcomment(G53) -> POWELL CONSTRUCTORS, INC. | I53: 7
A54: DELTA BAY CONSULTANTS LLC | B54: -4142 | C54: ='[1]Construction Worksheet'!G167 -> 22148 | D54: M | E54: 7 | F54: =fetchcomment(E54) -> 01-0J6314 10-1H6504 10-0G8304 01-0E11U4 04-4J5404 07-347504 01-0C55U4 | G54: 5 | H54: =fetchcomment(G54) -> GRANITE CONSTRUCTION COMPANY MARINA LANDSCAPE INC VIKING CONSTRUCTION COMPANY INC GHILOTTI BROS, INC. GRIFFITH COMPANY | I54: 1,4,7,10
A55: DESIGN BUILD ENGINEERING | B55: -4142 | C55: ='[1]Construction Worksheet'!G173 -> 1426760 | D55: M | E55: 2 | F55: =fetchcomment(E55) -> 07-322904 08-1H3804 | G55: 2 | H55: =fetchcomment(G55) -> C. A. RASMUSSEN, INC. ACCU CONSTRUCTION | I55: 7,8
A56: DIRT DYNASTY | B56: -4142 | C56: ='[1]Construction Worksheet'!G178 -> 3612876.98 | D56: M | E56: 1 | F56: =fetchcomment(E56) -> 10-1G2504 | G56: 1 | H56: =fetchcomment(G56) -> DIRT DYNASTY | I56: 10
A57: DRAGON MATERIAL TRANSPORT | B57: 33 | C57: ='[1]Construction Worksheet'!C47 -> 7061140.88 | D57: F | E57: 8 | F57: =fetchcomment(E57) -> 02-3H6804 02-4H0204 02-4H6604 02-4H0504 03-4H6004 04-0K7804 04-4J5404 04-1J9604 | G57: 7 | H57: =fetchcomment(G57) -> J.F. SHEA CONSTRUCTION INC TULLIS INC STIMPEL-WIEBELHAUS ASSOCIATES TULLIS INC DESILVA GATES CONSTRUCTION LLC GHILOTTI BROS O.C. JONES & SONS INC | I57: 2,3,4
A58: E & L GONZALEZ ENGINEERING | B58: -4142 | C58: ='[1]Construction Worksheet'!G186 -> 1503549 | D58: M | E58: 1 | F58: =fetchcomment(E58) -> 07-330304 | G58: 1 | H58: =fetchcomment(G58) -> FEC FUTURE CONTRACTORS AND ENGINEERS INC | I58: 7
A59: ENDEMIC ENVIRONMENTAL SERVICES | B59: -4142 | C59: ='[1]Construction Worksheet'!G193 -> 127750 | D59: M | E59: 4 | F59: =fetchcomment(E59) -> 02-0J6404 08-1J2604 01-0C55U4 02-4H0004 | G59: 4 | H59: =fetchcomment(G59) -> BALDWIN CONTRACTING COMPANY, INC. DBA KNIFE RIVER CONSTRUCTION MARTIN MARIETTA SAN DIEGO AGGREGATES LLC DBA ATP GENERAL ENGINEERING CONTRACTORS GRANITE CONSTRUCTION COMPANY ROCKY MOUNTAIN CONSTRUCTION | I59: 1,2,8
A60: FLASH TRAFFIC, INC. | B60: -4142 | C60: ='[1]Construction Worksheet'!C52 -> 42960 | D60: F | E60: 1 | F60: =fetchcomment(E60) -> 03-1H6304 | G60: 1 | H60: =fetchcomment(G60) -> O.C. JONES & SONS, INC. | I60: 3
A61: FRONTLINE TRAFFIC CONTROL | B61: -4142 | C61: ='[1]Construction Worksheet'!G208 -> 2001404 | D61: M | E61: 6 | F61: =fetchcomment(E61) -> 07-330304 07-322904 12-0S1504 07-347504 07-348804 07-349504 | G61: 5 | H61: =fetchcomment(G61) -> FEC FUTURE CONTRACTORS AND ENGINEERS INC C. A. RASMUSSEN, INC. POWELL CONSTRUCTORS INC GRIFFITH COMPANY ALFARO COMMUNICATIONS CONSTRUCTION | I61: 7,12
A62: FULL TRAFFIC MAINTENANCE, INC. | B62: -4142 | C62: ='[1]Construction Worksheet'!G213 -> 790325 | D62: M | E62: 2 | F62: =fetchcomment(E62) -> 07-338604 08-496124 | G62: 1 | H62: =fetchcomment(G62) -> ALFARO COMMUNICATIONS CONSTRUCTION, INC. | I62: 7,8
A63: G&F CONCRETE CUTTING, INC. | B63: -4142 | C63: ='[1]Construction Worksheet'!C66 -> 1010491.23 | D63: F | E63: 7 | F63: =fetchcomment(E63) -> 07-322904 11-430394 10-1E3004 11-2T3434 03-3H6104 06-0X3004 07-349504 | G63: 6 | H63: =fetchcomment(G63) -> C. A. RASMUSSEN, INC. GRIFFITH COMPANY BAY CITIES PAVING & GRADING, INC. WALSH CONSTRUCTION COMPANY II, LLC DESILVA GATES CONSTRUCTION LLC ALFARO COMMUNICATIONS CONSTRUCITON INC | I63: 3,6,7,11
A64: GEOSTRUCTURAL | B64: -4142 | C64: ='[1]Construction Worksheet'!G218 -> 877840 | D64: M | E64: 1 | F64: =fetchcomment(E64) -> 12-0N8904 | G64: 1 | H64: =fetchcomment(G64) -> SECURITY PAVING COMPANY, INC. | I64: 12
A65: GOLDEN BAY FENCE PLUS INC | B65: 33 | C65: ='[1]Construction Worksheet'!G225 -> 24674 | D65: M | E65: 1 | F65: =fetchcomment(E65) -> 04-0K7804 | G65: 1 | H65: =fetchcomment(G65) -> GHILOTTI BROS., INC. | I65: 4
A66: GOLDEN WEST FUEL | B66: -4142 | C66: ='[1]Construction Worksheet'!C74 -> 4001246 | D66: F | E66: 1 | F66: =fetchcomment(E66) -> 11-430254 | G66: 1 | H66: =fetchcomment(G66) -> BALDWIN CONTRACTING COMPANY, INC. DBA KNIFE RIVER CONSTRUCTION | I66: 11
A67: GRIT & GRAVEL | B67: -4142 | C67: ='[1]Construction Worksheet'!C79 -> 2851202.34 | D67: F | E67: 1 | F67: =fetchcomment(E67) -> 07-322904 | G67: 1 | H67: =fetchcomment(G67) -> C. A. RASMUSSEN, INC. | I67: 7
A68: HIGH LIGHT ELECTRIC INC | B68: -4142 | C68: ='[1]Construction Worksheet'!G238 -> 6538296.6 | D68: M | E68: 5 | F68: =fetchcomment(E68) -> 06-0U4304 06-0X3304 11-430394 05-1H3104 11-2T3434 | G68: 4 | H68: =fetchcomment(G68) -> GRIFFITH COMPANY SECURITY PAVING COMPANY GRANITE CONSTRUCTION COMPANY WALSH CONSTRUCTION COMPANY II, LLC | I68: 5,6,12
A69: J PEREZ TRANSPORT | C69: ='[1]Construction Worksheet'!G244 -> 359880 | D69: M | E69: 1 | F69: =fetchcomment(E69) -> 09-368004 | G69: 1 | H69: =fetchcomment(G69) -> PAPICH CONSTRUCITON COMPANY INC | I69: 9
A70: JEFFERSON STATE HIGHWAY INC | B70: -4142 | C70: ='[1]Construction Worksheet'!G264 -> 1089102.66 | D70: M | E70: 10 | F70: =fetchcomment(E70) -> 01-0J6314 02-3H6504 02-3H82U4 02-4H6604 02-0J6404 02-4H0504 03-1H6304 01-0C55U4 02-4H0004 09-368004 | G70: 9 | H70: =fetchcomment(G70) -> GRANITE CONSTRUCTION COMPANY J.F. SHEA CONSTRUCTION INC HAT CREEK CONSTRUCTION & MATERIALS INC STIMPEL-WIEBELHAUS ASSOCIATES INC BALDWIN CONTRACTING COMPANY INC TULLIS INC O.C. JONES & SONS, INC. ROCKY MOUNTAIN CONSTRUCTION PAPICH CONSTRUCTION COMPANY INC | I70: 1,2,3,9
A71: KODIAK TRUCKING INC | B71: 43 | C71: ='[1]Construction Worksheet'!G269 -> 452270 | D71: M | E71: 1 | F71: =fetchcomment(E71) -> 06-0X3304 | G71: 1 | H71: =fetchcomment(G71) -> SECURITY PAVING COMPANY INC | I71: 6
A72: L&B METAL PRODUCT FABRICATION | B72: -4142 | C72: ='[1]Construction Worksheet'!G274 -> 131038.05 | D72: M | E72: 1 | F72: =fetchcomment(E72) -> 02-4H0504 | G72: 1 | H72: =fetchcomment(G72) -> TULLIS INC | I72: 2
A73: LA FIRMA INC | B73: -4142 | C73: ='[1]Construction Worksheet'!G282 -> 110700 | D73: M | E73: 4 | F73: =fetchcomment(E73) -> 01-0J6314 05-1H3104 01-0C55U4 06-0W9704 | G73: 2 | H73: =fetchcomment(G73) -> GRANITE CONSTRUCTION BORTOLUSSI & WATKIN INC | I73: 1,5,6
A74: LA STEEL SERVICES, INC. | B74: -4142 | C74: ='[1]Construction Worksheet'!G288 -> 1359475.05 | D74: M | E74: 1 | F74: =fetchcomment(E74) -> 12-0N8904 | G74: 1 | H74: =fetchcomment(G74) -> SECURITY PAVING COMPANY, INC. | I74: 12
A75: LOGISTICAL ENTERPRISES | B75: 33 | C75: ='[1]Construction Worksheet'!C91 -> 1916163.76 | D75: F | E75: 7 | F75: =fetchcomment(E75) -> 03-1H9904 07-320804 02-0J6404 03-4H6004 03-1H6304 03-2J3204 03-3H6104 | G75: 5 | H75: =fetchcomment(G75) -> A. TEICHERT & SON INC DBA TEICHERT CONSTRUCTION CALPROMAX ENGINEERING, INC. DESILVA GATES CONSTRUCTION CSI/CJA A JOINT VENTURE O.C. JONES & SONS, INC. | I75: 2,3,7
A76: LONE STAR LANDSCAPE | B76: -4142 | C76: ='[1]Construction Worksheet'!G297 -> 141148 | D76: M | E76: 3 | F76: =fetchcomment(E76) -> 03-1H6304 04-2Q5704 04-3Q7604 | G76: 3 | H76: =fetchcomment(G76) -> O.C. JONES & SONS, INC. DISNEY CONSTRUCTION, INC. GHILOTTI BROS INC | I76: 3,4
A77: LOWERS INDUSTRIAL SUPPLY | B77: -4142 | C77: ='[1]Construction Worksheet'!G302 -> 229735.49 | D77: M | E77: 1 | F77: =fetchcomment(E77) -> 07-351304 | G77: 1 | H77: =fetchcomment(G77) -> POWELL CONSTRUCTORS, INC. | I77: 7
A78: M & S ENVIRONMENTAL LANDSCAPES | B78: 33 | C78: ='[1]Construction Worksheet'!G319 -> 1586339.5 | D78: M | E78: 8 | F78: =fetchcomment(E78) -> 01-0H6104 02-3H6504 02-3H82U4 02-4H0204 02-4H6604 01-0E11U4 02-0J6404 02-4H0504 | G78: 7 | H78: =fetchcomment(G78) -> MERCER FRASER COMPANY J.F. SHEA CONSTRUCTION INC HAT CREEK CONSTRUCTION AND MATERIALS INC TULLIS INC SATIMPEL-WIEBELHAUS ASSOCIATES INC GRANITE CONSTRUCTION COMPANY BALDWIN CONTRACTING DBA KNIFE RIVER | I78: 1,2
A79: MANERI TRAFFIC CONTROL | B79: -4142 | C79: ='[1]Construction Worksheet'!C103 -> 7111957.5 | D79: F | E79: 8 | F79: =fetchcomment(E79) -> 11-430394 12-0N8904 07-321604 08-1H3804 11-430254 07-351304 08-1H9914 08-1J2604 | G79: 8 | H79: =fetchcomment(G79) -> GRIFFITH COMPANY SECURITY PAVING COMPANY, INC. RJ NOBLE COMPANY ACCU CONSTRUCTION INC CSI/CJA A JOINT VENTURE POWELL CONSTRUCTORS, INC. PETERSON-CHASE GENERAL ENGINEERING CONSTRUCTION INC. MARTIN MARIETTA SAN DIEGO AGGREGATES LLC DBA ATP GENERAL ENGINEERING CONTRACTORS | I79: 7,8,11,12
A80: MESA TRAFFIC SERVICES | C80: ='[1]Construction Worksheet'!G326 -> 238875 | D80: M | E80: 1 | F80: =fetchcomment(E80) -> 06-0X3004 | G80: 1 | H80: =fetchcomment(G80) -> BAY CITIES PAVING AND GRADING | I80: 6
A81: MJD ENGINEERING | B81: -4142 | C81: ='[1]Construction Worksheet'!G335 -> 8469616 | D81: M | E81: 2 | F81: =fetchcomment(E81) -> 03-4H6004 03-3H6104 | G81: 2 | H81: =fetchcomment(G81) -> TULLIS INC DESILVA GATES CONSTRUCITON LLC | I81: 2,3
A82: MONZON & SON ENTERPRISES, INC. | B82: 43 | C82: ='[1]Construction Worksheet'!G341 -> 469392 | D82: M | E82: 1 | F82: =fetchcomment(E82) -> 12-0N8904 | G82: 1 | H82: =fetchcomment(G82) -> SECURITY PAVING COMPANY, INC. | I82: 12
A83: MORALES CONTRACTING | B83: -4142 | C83: ='[1]Construction Worksheet'!G346 -> 69092.5 | D83: M | E83: 1 | F83: =fetchcomment(E83) -> 11-430254 | G83: 1 | H83: =fetchcomment(G83) -> CSI/CJA A JOINT VENTURE | I83: 11
A84: POLO ENGINEERING INC | C84: ='[1]Construction Worksheet'!C109 -> 2058303.6 | D84: F | E84: 1 | F84: =fetchcomment(E84) -> 07-357004 | G84: 1 | H84: =fetchcomment(G84) -> POLO ENGINEERING INC | I84: 7
A85: PRE-CON PRODUCTS LTD | B85: -4142 | C85: ='[1]Construction Worksheet'!G357 -> 698314.93 | D85: M | E85: 3 | F85: =fetchcomment(E85) -> 06-0U4304 05-1H3104 06-0X3004 | G85: 2 | H85: =fetchcomment(G85) -> GRIFFITH COMPANY GRANITE CONSTRUCTION COMPANY | I85: 5, 6
A86: QA CONSTRUCTORS | B86: -4142 | C86: ='[1]Construction Worksheet'!G364 -> 354020 | D86: M | E86: 1 | F86: =fetchcomment(E86) -> 10-0G8304 | G86: 1 | H86: =fetchcomment(G86) -> VIKING CONSTRUCTION COMPANY INC | I86: 10
A87: QUALITY TRAFFIC CONTROL | B87: -4142 | C87: ='[1]Construction Worksheet'!G372 -> 1368247.4 | D87: M | E87: 2 | F87: =fetchcomment(E87) -> 08-1C5704 08-1G6404 | G87: 2 | H87: =fetchcomment(G87) -> SEMA CONSTRUCTION INC SULLY-MILLER CONTRACTING COMPANY | I87: 8
A88: RANGEL BROTHERS TRUCKING | B88: 43 | C88: ='[1]Construction Worksheet'!G382 -> 1680735 | D88: M | E88: 1 | F88: =fetchcomment(E88) -> 06-0X3304 | G88: 1 | H88: =fetchcomment(G88) -> SECURITY PAVING COMPANY | I88: 6
A89: REYCON CONSTRUCTION, INC. | B89: -4142 | C89: ='[1]Construction Worksheet'!G386 -> 2355700 | D89: M | E89: 1 | F89: =fetchcomment(E89) -> 11-2T3434 | G89: 1 | H89: =fetchcomment(G89) -> WALSH CONSTRUCTION COMPANY II, LLC | I89: 11
A90: ROBINSON SWEEPING INC | B90: 43 | C90: ='[1]Construction Worksheet'!C116 -> 477400 | D90: F | E90: 2 | F90: =fetchcomment(E90) -> 01-0H6104 04-3Q7604 | G90: 2 | H90: =fetchcomment(G90) -> MERCER FRASER COMPANY GHILOTTI BROS | I90: 1,4
A91: RUPERT CONSTRUCTION SUPPLY | C91: ='[1]Construction Worksheet'!G393 -> 3390227.98 | D91: M | E91: 1 | F91: =fetchcomment(E91) -> 03-3H6104 | G91: 1 | H91: =fetchcomment(G91) -> DESILVA GATES CONSTRUCTION LLC | I91: 3
A92: S & S TRUCKING | B92: 43 | C92: ='[1]Construction Worksheet'!G403 -> 47429.55 | D92: M | E92: 2 | F92: =fetchcomment(E92) -> 04-0K7804 04-4J5404 | G92: 1 | H92: =fetchcomment(G92) -> GHILOTTI BROS., INC. | I92: 4,8
A93: SANDOVAL SWEEPING | B93: 43 | C93: ='[1]Construction Worksheet'!G409 -> 700000 | D93: M | E93: 1 | F93: =fetchcomment(E93) -> 07-321604 | G93: 1 | H93: =fetchcomment(G93) -> R.J. NOBLE COMPANY | I93: 7
A94: SIERRA TREE COMPANY | B94: -4142 | C94: ='[1]Construction Worksheet'!G415 -> 42000 | D94: M | E94: 1 | F94: =fetchcomment(E94) -> 04-4G21A4 | G94: 1 | H94: =fetchcomment(G94) -> JOHN SEMSEN LANDSCAPING CO., INC. | I94: 4
A95: SWPPQUEEN | B95: -4142 | C95: ='[1]Construction Worksheet'!C128 -> 267945 | D95: F | E95: 6 | F95: =fetchcomment(E95) -> 03-4H0704 07-322904 03-4H6004 07-347504 11-2T3434 03-3H6104 | G95: 4 | H95: =fetchcomment(G95) -> DESILVA GATES CONSTRUCTION C. A. RASMUSSEN, INC. GRIFFITH COMPANY WALSH CONSTRUCTION COMPANY II, LLC | I95: 3,7,11
A96: T.D.W. CONSTRUCTION INC | B96: -4142 | C96: ='[1]Construction Worksheet'!G419 -> 204530 | D96: M | E96: 1 | F96: =fetchcomment(E96) -> 03-4H0704 | G96: 1 | H96: =fetchcomment(G96) -> DESILVA GATES CONSTRUCTION | I96: 3
A97: TULLY INC | B97: -4142 | C97: ='[1]Construction Worksheet'!C152 -> 469910 | D97: F | E97: 11 | F97: =fetchcomment(E97) -> 10-1H6504 10-0G8304 03-1H9904 07-320804 03-1H6304 10-1E3004 04-1Q5814 03-2J3204 04-1J9604 04-3Q7604 06-0X3004 | G97: 7 | H97: =fetchcomment(G97) -> MARINA LANDSCAPE INC VIKING CONSTRUCTION COMPANY INC A. TEICHERT & SON INC DBA TEICHERT CONSTRUCTION CALPROMAX ENGINEERING, INC. O.C. JONES & SONS, INC. BAY CITIES PAVING & GRADING, INC. GHILOTTI BROS INC | I97: 3,4,6,10
A98: VALDIVIA TRUCKING | B98: 43 | C98: ='[1]Construction Worksheet'!G431 -> 2507916 | D98: M | E98: 4 | F98: =fetchcomment(E98) -> 01-0J6314 01-0E11U4 01-0C55U4 04-1J9604 | G98: 2 | H98: =fetchcomment(G98) -> GRANITE CONSTRUCTION COMPANY O.C. JONES & SONS INC | I98: 1,4
A99: WESTERN TRAFFIC SUPPLY, INC. | B99: -4142 | C99: ='[1]Construction Worksheet'!G438 -> 4137520 | D99: M | E99: 2 | F99: =fetchcomment(E99) -> 04-1Q5814 10-1E3004 | G99: 1 | H99: =fetchcomment(G99) -> BAY CITIES PAVING & GRADING, INC. | I99: 4,10
F100: =fetchcomment(E100) ->  | H100: =fetchcomment(G100) -> 
A102: Native American | B102: Column1 | C102: Dollars | D102: M/F | E102: Contract | F102: Contract # | G102: Number of Primes | H102: Prime Name | I102: Districts
A103: CREST EQUIPMENT | B103: -4142 | C103: ='[1]Construction Worksheet'!K7 -> 757512 | D103: F | E103: 1 | F103: =fetchcomment(E103) -> 11-430254 | G103: 1 | H103: =fetchcomment(G103) -> CSI/CJA A JOINT VENTURE | I103: 11
A104: DISABLED AMERICAN VETERAN | C104: ='[1]Construction Worksheet'!O9 -> 197013.78 | D104: M | E104: 1 | F104: =fetchcomment(E104) -> 06-1A4604 | G104: 1 | H104: =fetchcomment(G104) -> CAL VALLEY CONSTRUCTION INC | I104: 6
A105: FORCE TRAFFIC CONTROL | C105: ='[1]Construction Worksheet'!O17 -> 479000 | D105: M | E105: 1 | F105: =fetchcomment(E105) -> 06-0X3804 | G105: 1 | H105: =fetchcomment(G105) -> GRIFFITH COMPANY | I105: 6
A106: GLOBAL TRANSLOADING | B106: -4142 | C106: ='[1]Construction Worksheet'!K13 -> 49230 | D106: F | E106: 1 | F106: =fetchcomment(E106) -> 07-351304 | G106: 1 | H106: =fetchcomment(G106) -> POWELL CONSTRUCTORS, INC. | I106: 7
A107: KRC SAFETY CO INC | B107: 33 | C107: ='[1]Construction Worksheet'!O37 -> 1093850 | D107: M | E107: 7 | F107: =fetchcomment(E107) -> 10-0G8304 10-1L6304 02-0J6404 04-1J9604 06-0W9704 06-1A4604 09-368004 | G107: 7 | H107: =fetchcomment(G107) -> VIKING CONSTRUCTION COMPANY CORAL CONSTRUCTION COMPANY BALDWIN CONTRACTING COMPANY INC DBA KNIFE RIVER O.C. JONES & SONS INC BORTOLUSSI & WATKIN INC CAL VALLEY CONSTRUCTION INC PAPICH CONSTRUCITON COMPANY | I107: 2,4,6,9,10
A108: MCCULLOUGH CONSTRUCTION INC | B108: -4142 | C108: ='[1]Construction Worksheet'!O46 -> 8619677.84 | D108: M | E108: 1 | F108: =fetchcomment(E108) -> 01-434844 | G108: 1 | H108: =fetchcomment(G108) -> MCCULLOUGH CONSTRUCTION INC | I108: 1
A109: S.T. RHOADES CONSTRUCTION | B109: -4142 | C109: ='[1]Construction Worksheet'!O68 -> 1320062 | D109: M | E109: 3 | F109: =fetchcomment(E109) -> 01-0H6104 02-0J6404 02-4H0504 | G109: 3 | H109: =fetchcomment(G109) -> MERCER FRASER BALDWIN CONTRACTING DBA KNIFE RIVER TULLIS INC | I109: 1,2
A110: SAM'S EQUIPMENT & SUPPLIES | B110: 33 | C110: ='[1]Construction Worksheet'!O60 -> 1411957.5 | D110: M | E110: 5 | F110: =fetchcomment(E110) -> 10-1H6504 03-1H9904 12-0S1504 06-0W9704 09-368004 | G110: 5 | H110: =fetchcomment(G110) -> MARINA LANDSCAPE INC A. TEICHERT & SON INC DBA TEICHERT CONSTRUCTION POWELL CONSTRUCTORS INC BORTOLUSSI & WATKIN INC PAPICH CONSTRUCTION COMPANY | I110: 3,6,9,10,12
A111: TOTAL TRAFFIC CONTROL | B111: 33 | C111: ='[1]Construction Worksheet'!O76 -> 189300 | D111: M | E111: 1 | F111: =fetchcomment(E111) -> 10-1H6504 | G111: 1 | H111: =fetchcomment(G111) -> MARINA LANDSCAPE INC | I111: 10
A112: WEST COAST DRILLING | B112: -4142 | C112: ='[1]Construction Worksheet'!K18 -> 926764.8 | D112: F | E112: 1 | F112: =fetchcomment(E112) -> 01-0J6314 | G112: 1 | H112: =fetchcomment(G112) -> GRANITE CONSTRUCTION COMPANY | I112: 1
F113: =fetchcomment(E113) ->  | H113: =fetchcomment(G113) -> 
A115: African American | B115: Column1 | C115: Dollars | D115: M/F | E115: Contract | F115: Contract # | G115: Number of Primes | H115: Prime Name | I115: Districts
A116: ALLUVION BIOLOGICAL CONSULTING | B116: -4142 | C116: ='[1]Construction Worksheet'!W7 -> 536010 | D116: M | E116: 1 | F116: =fetchcomment(E116) -> 01-0E11U4 | G116: 1 | H116: =fetchcomment(G116) -> GRANITE CONSTRUCTION COMPANY | I116: 1
A117: APPIAN UDBE SWPPPS | C117: ='[1]Construction Worksheet'!S7 -> 850 | D117: F | E117: 1 | F117: =fetchcomment(E117) -> 02-4H0004 | G117: 1 | H117: =fetchcomment(G117) -> ROCKY MOUNTAIN CONSTRUCTION | I117: 2
A118: BLACK DIAMOND ASPHALT INC | B118: 33 | C118: ='[1]Construction Worksheet'!S26 -> 9380380.37 | D118: F | E118: 10 | F118: =fetchcomment(E118) -> 01-0H6104 02-3H6504 03-4H0704 03-1H9904 02-0J6404 03-1H6304 10-1E3004 01-0C55U4 03-2J3204 06-0X3004 | G118: 8 | H118: =fetchcomment(G118) -> MERCER FRASER COMPANY J.F. SHEA CONSTRUCTION INC DESILVA GATES CONSTRUCTION LLC A. TEICHERT & SON INC DBA TEICHERT CONSTRUCTION BALDWIN CONTRACTING COMPANY INC DBA KNIFE RIVER O.C. JONES & SONS, INC. BAY CITIES PAVING & GRADING, INC. GRANITE CONSTRUCTION COMPANY | I118: 1,2,3,6,10
A119: CGO CONSTRUCTION COMPANY | B119: -4142 | C119: ='[1]Construction Worksheet'!W12 -> 119600 | D119: M | E119: 2 | F119: =fetchcomment(E119) -> 11-430394 12-0N8904 | G119: 2 | H119: =fetchcomment(G119) -> GRIFFITH COMPANY SECURITY PAVING COMPANY, INC. | I119: 11,12
A120: DEPENDABLE PETROLEUM PRODUCTS | B120: 33 | C120: ='[1]Construction Worksheet'!W20 -> 4327258 | D120: M | E120: 4 | F120: =fetchcomment(E120) -> 08-1G6404 11-430254 08-1J2604 03-3H6104 | G120: 4 | H120: =fetchcomment(G120) -> SULLY-MILLER CONTRACTING COMPANY CSI/CJA A JOINT VENTURE MARTIN MARIETTA SAN DIEGO AGGREGATES LLC DBA ATP GENERAL ENGINEERING CONTRACTORS DESILVA GATES CONSTRUCTION LLC | I120: 3,8,11
A121: DOUBLE G'S SUPPLY, INC. | B121: 33 | C121: ='[1]Construction Worksheet'!S39 -> 77813.65 | D121: F | E121: 2 | F121: =fetchcomment(E121) -> 03-1H6304 10-1E3004 | G121: 2 | H121: =fetchcomment(G121) -> O.C. JONES & SONS, INC. BAY CITIES PAVING & GRADING, INC. | I121: 3,10
A122: K & G CONCRETE PUMPING | B122: -4142 | C122: ='[1]Construction Worksheet'!W25 -> 28899 | D122: M | E122: 1 | F122: =fetchcomment(E122) -> 01-0E11U4 | G122: 1 | H122: =fetchcomment(G122) -> GRANITE CONSTRUCTION COMPANY | I122: 1
A123: SYNERGY TRAFFIC CONTROL | B123: -4142 | C123: ='[1]Construction Worksheet'!W32 -> 853050 | D123: M | E123: 2 | F123: =fetchcomment(E123) -> 06-0X3304 11-2T3434 | G123: 2 | H123: =fetchcomment(G123) -> SECURITY PAVING COMPANY WALSH CONSTRUCTION COMPANY II, LLC | I123: 6,11
A124: TAYLOR WATER SERVICES | B124: -4142 | C124: ='[1]Construction Worksheet'!W37 -> 30000 | D124: M | E124: 1 | F124: =fetchcomment(E124) -> 01-0J6314 | G124: 1 | H124: =fetchcomment(G124) -> GRANTIE CONSTRUCTION COMPANY | I124: 1
A125: THE QUALITY FIRM, ACS, AC | B125: -4142 | C125: ='[1]Construction Worksheet'!W42 -> 91180 | D125: M | E125: 1 | F125: =fetchcomment(E125) -> 11-430394 | G125: 1 | H125: =fetchcomment(G125) -> GRIFFITH COMPANY | I125: 11
A126: THOMPSON CONTRACTING | B126: -4142 | C126: ='[1]Construction Worksheet'!W49 -> 483240 | D126: M | E126: 3 | F126: =fetchcomment(E126) -> 03-1H6304 04-4J5404 03-22J3204 | G126: 2 | H126: =fetchcomment(G126) -> O.C. JONES & SONS, INC. GHILOTTI BROS, INC. | I126: 3,4
A127: TK TRANSPORTATION | B127: -4142 | C127: ='[1]Construction Worksheet'!W56 -> 117640 | D127: M | E127: 1 | F127: =fetchcomment(E127) -> 02-4H6604 | G127: 1 | H127: =fetchcomment(G127) -> STIMPEL-WIEBELHAUS ASSOCIATES INC | I127: 2
F128: =fetchcomment(E128) ->  | H128: =fetchcomment(G128) -> 
A130: Sub Cont Asian | B130: Column1 | C130: Dollars | D130: M/F | E130: Contract | F130: Contract # | G130: Number of Primes | H130: Prime Name | I130: Districts
A131: A1 TRUCKING SVS, INC. | B131: 43 | C131: ='[1]Construction Worksheet'!AE11 -> 12983597.12 | D131: M | E131: 4 | F131: =fetchcomment(E131) -> 04-2G7804 10-1E3004 04-1Q5814 06-0X3004 | G131: 2 | H131: =fetchcomment(G131) -> FBD VANGUARD CONSTRUCTION, INC. BAY CITIES PAVING & GRADING, INC. | I131: 4,6,10
A132: ACCURATE EARTHWORKS INC | B132: -4142 | C132: ='[1]Construction Worksheet'!AE17 -> 419875.2 | D132: M | E132: 1 | F132: =fetchcomment(E132) -> 04-0K1304 | G132: 1 | H132: =fetchcomment(G132) -> DESILVA GATES CONSTRUCTION LLC | I132: 4
A133: CHANNA TRUCKING INC | B133: 43 | C133: ='[1]Construction Worksheet'!AA8 -> 141300 | D133: F | E133: 1 | F133: =fetchcomment(E133) -> 04-0K7804 | G133: 1 | H133: =fetchcomment(G133) -> GHILOTTI BROS INC | I133: 4
A134: DESTINATION ANYWHERE, INC. | B134: -4142 | C134: ='[1]Construction Worksheet'!AE23 -> 1048545 | D134: M | E134: 1 | F134: =fetchcomment(E134) -> 03-1H6304 | G134: 1 | H134: =fetchcomment(G134) -> O.C. JONES & SONS, INC. | I134: 3
A135: JASS BOYS TRUCK LINES | B135: -4142 | C135: ='[1]Construction Worksheet'!AE29 -> 3505900 | D135: M | E135: 2 | F135: =fetchcomment(E135) -> 04-4J5404 10-1E3004 | G135: 2 | H135: =fetchcomment(G135) -> GHILOTTI BROS, INC. BAY CITIES PAVING & GRADING, INC. | I135: 4,10
A136: S & S TRUCKING | C136: ='[1]Construction Worksheet'!AE36 -> 25800 | D136: M | E136: 1 | F136: =fetchcomment(E136) -> 04-3Q7604 | G136: 1 | H136: =fetchcomment(G136) -> GHILOTTI BROS INC | I136: 4
A137: SEQUOIA CONSULTANT INC | B137: 33 | C137: ='[1]Construction Worksheet'!AE53 -> 1602005 | D137: M | E137: 9 | F137: =fetchcomment(E137) -> 03-4H0704 07-322904 03-4H6004 11-430254 12-0S1504 05-1H3104 08-1J2604 11-2T3434 03-3H6104 | G137: 8 | H137: =fetchcomment(G137) -> ST. FRANCIS ELECTRIC LLC C. A. RASMUSSEN, INC. DESILVA GATES CONSTRUCTION CSI/CJA A JOINT VENTURE POWELL CONSTRUCTORS INC GRANITE CONSTRUCTION COMPANY MARTIN MARIETTA SAN DIEGO AGGREGATES LLC DBA ATP GENERAL ENGINEERING CONTRACTORS WALSH CONSTRUCTION COMPANY II, LLC | I137: 3,5,7,8,11,12
A138: SIERRA GEOTECH DBE, INC. | B138: -4142 | C138: ='[1]Construction Worksheet'!AA18 -> 370255 | D138: F | E138: 3 | F138: =fetchcomment(E138) -> 03-1H9904 03-3H6104 04-3Q7604 | G138: 3 | H138: =fetchcomment(G138) -> A. TEICHERT & SON INC DBA TEICHERT CONSTRUCTION DESILVA GATES CONSTRUCTION LLC GHILOTTI BROS INC | I138: 3,4
A139: SONNY'S TRUCKING | B139: 43 | C139: ='[1]Construction Worksheet'!AE60 -> 160500 | D139: M | E139: 1 | F139: =fetchcomment(E139) -> 10-1E3004 | G139: 1 | H139: =fetchcomment(G139) -> BAY CITIES PAVING & GRADING, INC. | I139: 10
F140: =fetchcomment(E140) ->  | H140: =fetchcomment(G140) -> 
A142: Asian Pacific | B142: Column1 | C142: Dollars | D142: M/F | E142: Contract | F142: Contract # | G142: Number of Primes | H142: Prime Name | I142: Districts
A143: ACE FENCE COMPANY | B143: -4142 | C143: ='[1]Construction Worksheet'!AI20 -> 3970144.45 | D143: F | E143: 11 | F143: =fetchcomment(E143) -> 06-0X3304 07-320804 11-430394 11-430254 12-0S1504 05-1H3104 07-351304 08-1J2604 11-2T3434 06-0W9704 06-0X3804 | G143: 9 | H143: =fetchcomment(G143) -> SECURITY PAVING COMPANY CALPROMAX ENGINEERING, INC. GRIFFITH COMPANY POWELL CONSTRUCTORS INC CSI/CJA A JOINT VENTURE GRANITE CONSTRUCTION COMPANY MARTIN MARIETTA SAN DIEGO AGGREGATES LLC DBA ATP GENERAL ENGINEERING CONTRACTORS WALSH CONSTRUCTION COMPANY II, LLC BORTOLUSSI & WATKIN INC | I143: 5,6,7,8,11,12
A144: BAY TECH ENGINEERING, INC. | B144: -4142 | C144: ='[1]Construction Worksheet'!AM6 -> 1607500 | D144: M | E144: 1 | F144: =fetchcomment(E144) -> 04-2Q5704 | G144: 1 | H144: =fetchcomment(G144) -> DISNEY CONSTRUCTION, INC. | I144: 4
A145: BRIDGE RUBBER BEARING | B145: -4142 | C145: ='[1]Construction Worksheet'!AM13 -> 59896 | D145: M | E145: 4 | F145: =fetchcomment(E145) -> 01-0J6314 10-0G8304 01-0E11U4 03-3H6104 | G145: 3 | H145: =fetchcomment(G145) -> GRANTIE CONSTRUCTION COMPANY VIKING CONSTRUCTION COMPANY DESILVA GATES CONSTRUCTION LLC | I145: 1,3,10
A146: CALIFORNIA PROFESSIONAL | B146: -4142 | C146: ='[1]Construction Worksheet'!AM20 -> 3595549 | D146: M | E146: 3 | F146: =fetchcomment(E146) -> 07-320804 07-321604 08-1J2604 | G146: 3 | H146: =fetchcomment(G146) -> CALPROMAX ENGINEERING, INC. R.J. NOBLE COMPANY MARTIN MARIETTA SAN DIEGO AGGREGATES LLC DBA ATP GENERAL ENGINEERING CONTRACTORS | I146: 7,8
A147: GLOBAL ROAD SEALING INC | B147: -4142 | C147: ='[1]Construction Worksheet'!AM29 -> 2333514 | D147: M | E147: 6 | F147: =fetchcomment(E147) -> 06-0X3304 07-322904 12-0N8904 07-338604 08-496124 07-349504 | G147: 3 | H147: =fetchcomment(G147) -> SECURITY PAVING COMPANY C. A. RASMUSSEN, INC. ALFARO COMMUNICATIONS CONSTRUCTION, INC. | I147: 6,7,8,12
A148: HUNSAKER & ASSOCIATES | B148: -4142 | C148: ='[1]Construction Worksheet'!AM34 -> 115108 | D148: M | E148: 1 | F148: =fetchcomment(E148) -> 07-322904 | G148: 1 | H148: =fetchcomment(G148) -> C. A. RASMUSSEN, INC. | I148: 7
A149: JJ NGUYEN | B149: 33 | C149: ='[1]Construction Worksheet'!AM39 -> 62752 | D149: M | E149: 1 | F149: =fetchcomment(E149) -> 04-4J5404 | G149: 1 | H149: =fetchcomment(G149) -> GHILOTTI BROS, INC. | I149: 4
A150: LMS TRANSPORT | B150: -4142 | C150: ='[1]Construction Worksheet'!AM47 -> 2543228.51 | D150: M | E150: 3 | F150: =fetchcomment(E150) -> 06-0X3304 07-322904 11-430394 | G150: 3 | H150: =fetchcomment(G150) -> SECURITY PAVING COMPANY C. A. RASMUSSEN, INC. GRIFFITH COMPANY | I150: 6,7,11
A151: NITTA EROSION CONTROL | C151: ='[1]Construction Worksheet'!AI27 -> 7876 | D151: F | E151: 1 | F151: =fetchcomment(E151) -> 02-4H0004 | G151: 1 | H151: =fetchcomment(G151) -> ROCKY MOUNTAIN CONSTRUCTION | I151: 2
A152: PRIME SUPPLY 1 | B152: -4142 | C152: ='[1]Construction Worksheet'!AI41 -> 240286.66 | D152: F | E152: 6 | F152: =fetchcomment(E152) -> 08-1C5704 10-1H6504 03-1H9904 05-1H3104 07-347504 11-2T3434 | G152: 6 | H152: =fetchcomment(G152) -> SEMA CONSTRUCTION INC MARINA LANDSCAPE INC A. TEICHERT & SON INC DBA TEICHERT CONSTRUCTION GRANITE CONSTRUCTION COMPANY GRIFFITH COMPANY WALSH CONSTRUCTION COMPANY II, LLC | I152: 3,5,7,8,10,11
A153: TRI COUNTIES TRUCKING | B153: 43 | C153: ='[1]Construction Worksheet'!AI64 -> 4575641 | D153: F | E153: 4 | F153: =fetchcomment(E153) -> 03-4H0704 03-1H9904 02-4H0004 03-3H6104 | G153: 3 | H153: =fetchcomment(G153) -> DESILVA GATES CONSTRUCTION A. TEICHERT & SON INC DBA TEICHERT CONSTRUCTION ROCKY MOUNTAIN CONSTRUCTION | I153: 2,3
A154: TRAFFIC LOOPS CRACKFILLING | B154: -4142 | C154: ='[1]Construction Worksheet'!AI47 -> 264700 | D154: F | E154: 1 | F154: =fetchcomment(E154) -> 11-430254 | G154: 1 | H154: =fetchcomment(G154) -> CSI/CJA A JOINT VENTURE | I154: 11
F155: =fetchcomment(E155) ->  | H155: =fetchcomment(G155) -> 
A157: Other | B157: Column1 | C157: Dollars | D157: M/F | E157: Contract | F157: Contract # | G157: Number of Primes | H157: Prime Name | I157: Districts
A158: ALFARO COMMUNICATIONS CONSTRUCTION, INC. | C158: ='[1]Construction Worksheet'!AW10 -> 1350925.9 | D158: M | E158: 1 | F158: =fetchcomment(E158) -> 08-1J6804 | G158: 1 | H158: =fetchcomment(G158) -> ALFARO COMMUNICATIONS CONSTRUCTION INC | I158: 8
F159: =fetchcomment(E159) ->  | H159: =fetchcomment(G159) -> 
A161: Non Minority Women | B161: Column1 | C161: Dollars | D161: M/F | E161: Contract | F161: Contract # | G161: Number of Primes | H161: Prime Name | I161: Districts
A162: ACTION SWEEPING SERVICES, INC. | B162: 43 | C162: ='[1]Construction Worksheet'!AQ12 -> 463440 | D162: F | E162: 3 | F162: =fetchcomment(E162) -> 03-1H6304 03-2J3204 04-1J9604 | G162: 1 | H162: =fetchcomment(G162) -> O.C. JONES & SONS, INC. | I162: 3,4
A163: ALTA GROUP | B163: -4142 | C163: ='[1]Construction Worksheet'!AQ17 -> 1096003 | D163: F | E163: 2 | F163: =fetchcomment(E163) -> 01-0E11U4 10-1E3004 | G163: 2 | H163: =fetchcomment(G163) -> GRANITE CONSTRUCTION COMPANY BAY CITIES PAVING & GRADING, INC. | I163: 1,10
A164: AMERICAN PAVING SUPPLY | B164: 33 | C164: ='[1]Construction Worksheet'!AQ22 -> 616204.21 | D164: F | E164: 2 | F164: =fetchcomment(E164) -> 11-430254 10-1E3004 | G164: 1 | H164: =fetchcomment(G164) -> CSI/CJA A JOINT VENTURE BAY CITIES PAVING & GRADING, INC. | I164: 10,11
A165: AURORA INDUSTRIAL HYGIENE | B165: -4142 | C165: ='[1]Construction Worksheet'!AQ28 -> 4200 | D165: F | E165: 2 | F165: =fetchcomment(E165) -> 05-1H3104 06-0W9704 | G165: 2 | H165: =fetchcomment(G165) -> GRANITE CONSTRUCTION COMPANY BORTOLUSSI & WATKIN | I165: 5,6
A166: AVILA TRAFFIC SAFETY | B166: 33 | C166: ='[1]Construction Worksheet'!AQ33 -> 463900 | D166: F | E166: 1 | F166: =fetchcomment(E166) -> 06-0U4304 | G166: 1 | H166: =fetchcomment(G166) -> GRIFFITH COMPANY | I166: 6
A167: BANCROFT CONSTRUCTION SERVICES | B167: 43 | C167: ='[1]Construction Worksheet'!AQ39 -> 622237 | D167: F | E167: 1 | F167: =fetchcomment(E167) -> 11-2T3434 | G167: 1 | H167: =fetchcomment(G167) -> WALSH CONSTRUCTION COMPANY II, LLC | I167: 11
A168: BOBS BACKHOE & TRUCKING | B168: 43 | C168: ='[1]Construction Worksheet'!AQ44 -> 213231 | D168: F | E168: 1 | F168: =fetchcomment(E168) -> 05-1H3104 | G168: 1 | H168: =fetchcomment(G168) -> GRANITE CONSTRUCTION COMPANY | I168: 5
A169: CAL SIGNAL CORP | B169: 33 | C169: ='[1]Construction Worksheet'!AQ51 -> 994034.89 | D169: F | E169: 4 | F169: =fetchcomment(E169) -> 02-3H6504 02-4H0204 02-4H0504 10-1E3004 | G169: 3 | H169: =fetchcomment(G169) -> J.F. SHEA CONSTRUCTION INC TULLIS INC BAY CITIES PAVING & GRADING, INC. | I169: 2,10
A170: CAT TRACKING | B170: -4142 | C170: ='[1]Construction Worksheet'!AQ56 -> 300027.25 | D170: F | E170: 2 | F170: =fetchcomment(E170) -> 07-320804 06-1A4604 | G170: 2 | H170: =fetchcomment(G170) -> CALPROMAX ENGINEERING, INC. CAL VALLEY CONSTRUCTION INC | I170: 6,7
A171: CES | B171: -4142 | C171: ='[1]Construction Worksheet'!AQ61 -> 91647 | D171: F | E171: 1 | F171: =fetchcomment(E171) -> 12-0N8904 | G171: 1 | H171: =fetchcomment(G171) -> SECURITY PAVING COMPANY, INC. | I171: 12
A172: CHAVEZ GENERAL ENGINEERING | B172: -4142 | C172: ='[1]Construction Worksheet'!AQ67 -> 3798000 | D172: F | E172: 2 | F172: =fetchcomment(E172) -> 02-3H6804 02-4H0004 | G172: 2 | H172: =fetchcomment(G172) -> J.F. SHEA CONSTRUCTION ROCKY MOUNTAIN CONSTRUCTION | I172: 2
A173: CMC TRAFFIC CONTROL | B173: -4142 | C173: ='[1]Construction Worksheet'!AQ72 -> 153600 | D173: F | E173: 1 | F173: =fetchcomment(E173) -> 04-2G7804 | G173: 1 | H173: =fetchcomment(G173) -> FBD VANGUARD CONSTRUCTION, INC. | I173: 4
A174: COLUMBIA ELECTRIC, INC. | B174: -4142 | C174: ='[1]Construction Worksheet'!AQ80 -> 2513556 | D174: F | E174: 4 | F174: =fetchcomment(E174) -> 04-2G7804 04-0K7804 04-4J5404 04-1Q5814 | G174: 3 | H174: =fetchcomment(G174) -> FBD VANGUARD CONSTRUCTION, INC. GHILOTTI BROS INC BAY CITIES PAVING & GRADING, INC. | I174: 4
A175: COOPER ENGINEERING | B175: 33 | C175: ='[1]Construction Worksheet'!AQ86 -> 847255.25 | D175: F | E175: 1 | F175: =fetchcomment(E175) -> 11-430254 | G175: 1 | H175: =fetchcomment(G175) -> CSI/CJA A JOINT VENTURE | I175: 11
A176: DEES BURKE ENGINEERING | B176: -4142 | C176: ='[1]Construction Worksheet'!AQ110 -> 8171038.82 | D176: F | E176: 13 | F176: =fetchcomment(E176) -> 01-0J6314 02-3H6804 10-0G8304 03-1H9904 11-430394 03-4H6004 04-0K7804 12-0S1504 04-4J5404 07-351304 03-3H6104 04-1J9604 06-0X3004 | G176: 10 | H176: =fetchcomment(G176) -> GRANTIE CONSTRUCTION COMPANY J.F. SHEA CONSTRUCTION COMPANY INC VIKING CONSTRUCTION COMPANY INC A. TEICHERT & SON INC DBA TEICHERT CONSTRUCTION GRIFFITH COMPANY DESILVA GATES CONSTRUCTION GHILOTTI BROS INC POWELL CONSTRUCTORS O.C. JONES AND SONS INC BAY CITIES PAVING & GRADING INC | I176: 1,2,3,4,6,7,10,11,12
A177: DIVERSIFIED LANDSCAPE CO | B177: -4142 | C177: ='[1]Construction Worksheet'!AQ121 -> 4677113.3 | D177: F | E177: 3 | F177: =fetchcomment(E177) -> 11-430254 08-1J2604 07-349504 | G177: 3 | H177: =fetchcomment(G177) -> CSI/CJA A JOINT VENTURE MARTIN MARIETTA SAN DIEGO AGGREGATES LLC DBA ATP GENERAL ENGINEERING CONTRACTORS ALFARO COMMUNICATIONS CONSTRUCTION INC | I177: 7,8,11
A178: DOUBLE E TRANSPORTATION | B178: 33 | C178: ='[1]Construction Worksheet'!AQ127 -> 2530997.75 | D178: F | E178: 2 | F178: =fetchcomment(E178) -> 06-0U4304 06-0X3804 | G178: 1 | H178: =fetchcomment(G178) -> GRIFFITH COMPANY | I178: 6
A179: GALLAWAY ENTERPRISES | B179: -4142 | C179: ='[1]Construction Worksheet'!AQ135 -> 107806 | D179: F | E179: 4 | F179: =fetchcomment(E179) -> 02-4H0204 03-4H6004 03-1H6304 03-3H6104 | G179: 3 | H179: =fetchcomment(G179) -> TULLIS INC DESILVA GATES CONSTRUCTION O.C. JONES & SONS, INC. | I179: 2,3
A180: J & M LAND RESTORATION INC | B180: -4142 | C180: ='[1]Construction Worksheet'!AQ146 -> 1356860 | D180: F | E180: 4 | F180: =fetchcomment(E180) -> 06-0X3304 06-0U4304 06-0X3804 09-368004 | G180: 3 | H180: =fetchcomment(G180) -> SECURITY PAVING COMPANY GRIFFITH COMPANY PAPICH CONSTRUCTION COMPANY INC | I180: 6,9
A181: JARRETT FOUNDATIONS INC. | B181: 33 | C181: ='[1]Construction Worksheet'!AQ151 -> 584670 | D181: F | E181: 1 | F181: =fetchcomment(E181) -> 01-0E11U4 | G181: 1 | H181: =fetchcomment(G181) -> GRANITE CONSTRUCTION COMPANY | I181: 1
A182: JOHNS EQUIPMENT RENTAL | B182: 43 | C182: ='[1]Construction Worksheet'!AQ155 -> 361536 | D182: F | E182: 1 | F182: =fetchcomment(E182) -> 11-430254 | G182: 1 | H182: =fetchcomment(G182) -> CSI/CJA A JOINT VENTURE | I182: 11
A183: K&K CONSTRUCTION SUPPLY, INC. | B183: 33 | C183: ='[1]Construction Worksheet'!AQ161 -> 783559.76 | D183: F | E183: 1 | F183: =fetchcomment(E183) -> 03-1H9904 | G183: 1 | H183: =fetchcomment(G183) -> A. TEICHERT & SON INC DBA TEICHERT CONSTRUCTION | I183: 3
A184: LD INNOVATIONS | B184: -4142 | C184: ='[1]Construction Worksheet'!AQ167 -> 88527 | D184: F | E184: 1 | F184: =fetchcomment(E184) -> 04-0K1304 | G184: 1 | H184: =fetchcomment(G184) -> ST. FRANCIS ELECTRIC LLC | I184: 4
A185: LINDYS COLD PLANNING | B185: -4142 | C185: ='[1]Construction Worksheet'!AQ177 -> 6092703 | D185: F | E185: 6 | F185: =fetchcomment(E185) -> 08-1G6404 07-322904 11-430394 11-430254 05-1H3104 09-368004 | G185: 6 | H185: =fetchcomment(G185) -> SULLY-MILLER CONTRACTING COMPANY C. A. RASMUSSEN, INC. GRIFFITH COMPANY CSI/CJA A JOINT VENTURE GRANITE CONSTRUCTION COMPANY PAPICH CONSTRUCTION COMPANY, INC. | I185: 5,7,8,9,11
A186: LMS TRANSPORT | B186: 33 | C186: ='[1]Construction Worksheet'!AQ184 -> 2585022.4 | D186: F | E186: 4 | F186: =fetchcomment(E186) -> 07-321604 05-1H3104 11-2T3434 09-368004 | G186: 4 | H186: =fetchcomment(G186) -> R.J.NOBLE COMPANY GRANITE CONSTRUCTION COMPANY WALSH CONSTRUCTION COMPANY II, LLC PAPICH CONSTRUCTION COMPANY, INC. | I186: 5,7,9,11
A187: LOWERS INDUSTRIAL SUPPLY | B187: 33 | C187: ='[1]Construction Worksheet'!AQ189 -> 165162.98 | D187: F | E187: 1 | F187: =fetchcomment(E187) -> 12-0S1504 | G187: 1 | H187: =fetchcomment(G187) -> POWELL CONSTRUCTORS INC | I187: 12
A188: MCW TRAFFIC CONTROL | B188: -4142 | C188: ='[1]Construction Worksheet'!AQ199 -> 541295 | D188: F | E188: 4 | F188: =fetchcomment(E188) -> 02-4H6604 10-1L6304 03-1H6304 10-1E3004 | G188: 4 | H188: =fetchcomment(G188) -> STIMPEL-WIEBELHAUS ASSOCIATES INC CORAL CONSTRUCTION COMPANY O.C. JONES & SONS, INC. BAY CITIES PAVING & GRADING, INC. | I188: 2,5,10
A189: MOUNTAINVEIW BIOLOGICAL | B189: -4142 | C189: ='[1]Construction Worksheet'!AQ206 -> 182299.84 | D189: F | E189: 2 | F189: =fetchcomment(E189) -> 08-1C5704 08-1H9914 | G189: 2 | H189: =fetchcomment(G189) -> SEMA CONSTRUCTION INC PETERSON-CHASE GENERAL ENGINEERING CONSTRUCTION INC. | I189: 8
A190: NICHOLLS TRUCKING INC | B190: 43 | C190: ='[1]Construction Worksheet'!AQ213 -> 648750 | D190: F | E190: 1 | F190: =fetchcomment(E190) -> 01-0H6104 | G190: 1 | H190: =fetchcomment(G190) -> MERCER FRASER COMPANY | I190: 1
A191: PAYCO SPECIALTIES | B191: -4142 | C191: ='[1]Construction Worksheet'!AQ222 -> 1895878 | D191: F | E191: 4 | F191: =fetchcomment(E191) -> 11-430304 11-430394 11-430254 11-2T3434 | G191: 4 | H191: =fetchcomment(G191) -> SB GENERAL ENGINEERING INC GRIFFITH COMPANY CSI/CJA A JOINT VENTURE WALSH CONSTRUCTION COMPANY II, LLC | I191: 11
A192: PC & N CONSTRUCTION INC | B192: -4142 | C192: ='[1]Construction Worksheet'!AQ235 -> 3134610.96 | D192: F | E192: 9 | F192: =fetchcomment(E192) -> 02-3H6804 02-4H0204 02-3H6504 10-1L6304 02-4H0504 04-0K7804 10-1E3004 04-1Q5814 02-4H0004 | G192: 6 | H192: =fetchcomment(G192) -> J.F. SHEA CONSTRUCTION INC TULLIS INC CORAL CONSTRUCTION COMPANY GHILOTTI BROS BAY CITIES PAVING & GRADING, INC. ROCKY MOUNTAIN CONSTRUCTION | I192: 2,4,10
A193: PLAYA SAFETY, INC. | B193: -4142 | C193: ='[1]Construction Worksheet'!AQ242 -> 355658.22 | D193: F | E193: 4 | F193: =fetchcomment(E193) -> 07-351304 08-1H9914 10-1E3004 11-2T3434 | G193: 4 | H193: =fetchcomment(G193) -> POWELL CONSTRUCTORS, INC. PETERSON-CHASE GENERAL ENGINEERING CONSTRUCTION INC. BAY CITIES PAVING & GRADING, INC. WALSH CONSTRUCTION COMPANY II, LLC | I193: 7,8,10,11
A194: QUALITY HYDROSEEDING & RESTORATION | B194: 33 | C194: ='[1]Construction Worksheet'!AQ247 -> 447000 | D194: F | E194: 1 | F194: =fetchcomment(E194) -> 08-1J2604 | G194: 1 | H194: =fetchcomment(G194) -> MARTIN MARIETTA SAN DIEGO AGGREGATES LLC DBA ATP GENERAL ENGINEERING CONTRACTORS | I194: 8
A195: ROBERTS OIL CORPORATION | B195: -4142 | C195: ='[1]Construction Worksheet'!AQ253 -> 120000 | D195: F | E195: 1 | F195: =fetchcomment(E195) -> 12-0N8904 | G195: 1 | H195: =fetchcomment(G195) -> SECURITY PAVING COMPANY, INC. | I195: 12
A196: ROLL N ROCK CONSTRUCTION | B196: -4142 | C196: ='[1]Construction Worksheet'!AQ271 -> 8157043.38 | D196: F | E196: 10 | F196: =fetchcomment(E196) -> 01-0H6104 02-3H6504 02-3H6804 02-4H0204 03-4H0704 10-0G8304 03-1H9904 02-4H0004 03-3H6104 04-3Q7604 | G196: 8 | H196: =fetchcomment(G196) -> MERCER FRASER COMPANY J.F. SHEA CONSTRUCTION INC TULLIS INC DESILVA GATES CONSTRUCTION VIKING CONSTRUCTION & MATERIALS INC A. TEICHERT & SON INC DBA TEICHERT CONSTRUCTION ROCKY MOUNTAIN CONSTRUCTION GHILOTTI BROS INC | I196: 1,2,3,4,10
A197: ROUCH REBAR INC | B197: -4142 | C197: ='[1]Construction Worksheet'!AQ278 -> 126335.99 | D197: F | E197: 3 | F197: =fetchcomment(E197) -> 11-430254 12-0S1504 07-351304 | G197: 2 | H197: =fetchcomment(G197) -> CSI/CJA A JOINT VENTURE POWELL CONSTRUCTORS INC | I197: 7,11,12
A198: RUPERT CONSTRUCTION SUPPLY | B198: 33 | C198: ='[1]Construction Worksheet'!AQ286 -> 269374.61 | D198: F | E198: 2 | F198: =fetchcomment(E198) -> 12-0S1504 11-2T3434 | G198: 2 | H198: =fetchcomment(G198) -> POWELL CONSTRUCTORS INC WALSH CONSTRUCTION COMPANY II, LLC | I198: 11,12
A199: S.A.M. RHODES | B199: -4142 | C199: ='[1]Construction Worksheet'!AQ293 -> 63500 | D199: F | E199: 3 | F199: =fetchcomment(E199) -> 02-3H82U4 03-4H0704 02-4H0004 | G199: 3 | H199: =fetchcomment(G199) -> HAT CREEK CONSTRUCTION MATERIALS DESILVA GATES CONSTRUCTION LLC ROCKY MOUNTAIN CONSTRUCTION | I199: 2,3
A200: SUPER SEAL & STRIPE | B200: -4142 | C200: ='[1]Construction Worksheet'!AQ299 -> 103230 | D200: F | E200: 1 | F200: =fetchcomment(E200) -> 05-1H3104 | G200: 1 | H200: =fetchcomment(G200) -> GRANITE CONSTRUCTION COMPANY | I200: 5
A201: SUPERIOR HYDROSEEDING | B201: -4142 | C201: ='[1]Construction Worksheet'!AQ305 -> 6961.5 | D201: F | E201: 1 | F201: =fetchcomment(E201) -> 10-1L6304 | G201: 1 | H201: =fetchcomment(G201) -> CORAL CONSTRUCTION COMPANY | I201: 10
A202: T & S DVBE | B202: 33 | C202: ='[1]Construction Worksheet'!AQ326 -> 9823312.46 | D202: F | E202: 12 | F202: =fetchcomment(E202) -> 01-0J6314 02-3H82U4 01-0E11U4 04-2G7804 02-0J6404 02-4H0504 04-0K7804 03-1H6304 04-4J5404 10-1E3004 01-0C55U4 04-1J9604 | G202: 8 | H202: =fetchcomment(G202) -> GRANTIE CONSTRUCTION COMPANY HAT CREEK CONSTRUCTION MATERIALS FBD VANGUARD CONSTRUCTION, INC. BALDWIN CONTRACTING COMPANY INC DBA KNIFE RIVER TULLIS INC GHILOTTI BROS, INC. O.C. JONES & SONS, INC. BAY CITIES PAVING & GRADING, INC. | I202: 1,2,3,4,10
A203: TEK SERVICES | B203: 33 | C203: ='[1]Construction Worksheet'!AQ336 -> 1519498.81 | D203: F | E203: 3 | F203: =fetchcomment(E203) -> 11-430254 07-348804 07-349504 | G203: 2 | H203: =fetchcomment(G203) -> CSI/CJA A JOINT VENTURE ALFARO COMMUNICATIONS CONSTRUCTION INC | I203: 7,11
A204: TRIUMPH GEO SYNTHETICS INC | B204: 33 | C204: ='[1]Construction Worksheet'!AQ341 -> 19190.96 | D204: F | E204: 2 | F204: =fetchcomment(E204) -> 12-0S1504 07-351304 | G204: 1 | H204: =fetchcomment(G204) -> POWELL CONSTRUCTORS INC | I204: 7,12
A205: TYRRELL RESOURCES | B205: -4142 | C205: ='[1]Construction Worksheet'!AQ360 -> 2700533.5 | D205: F | E205: 11 | F205: =fetchcomment(E205) -> 02-3H6804 02-3H82U4 03-4H0704 10-0G8304 01-0E11U4 03-1H9904 02-0J6404 02-4H0504 03-1H6304 01-0C55U4 03-3H6104 | G205: 9 | H205: =fetchcomment(G205) -> J.F. SHEA CONSTRUCTION INC HAT CREEK CONSTRUCTION MATERIALS INC DESILVA GATES CONSTRUCTION VIKING CONSTRUCTION COMPANY GRANITE CONSTRUCTION COMPANY A. TEICHERT & SON INC DBA TEICHERT CONSTRUCTION BALDWIN CONTRACTING COMPANY INC DBA KNIFE RIVER TULLIS O.C. JONES & SONS, INC. | I205: 1,2,3,10
A206: VERIDICO GROUP INC | B206: -4142 | C206: ='[1]Construction Worksheet'!AQ370 -> 10380 | D206: F | E206: 1 | F206: =fetchcomment(E206) -> 02-3H6504 | G206: 1 | H206: =fetchcomment(G206) -> J.F. SHEA CONSTRUCTION | I206: 2
A207: WATER COMPONENTS & BUILDING | B207: -4142 | C207: ='[1]Construction Worksheet'!AQ376 -> 11743.54 | D207: F | E207: 2 | F207: =fetchcomment(E207) -> 04-4J5404 04-3Q7604 | G207: 1 | H207: =fetchcomment(G207) -> GHILOTTI BROS, INC. | I207: 4
A208: WEST COAST WATER & TRUCKING | B208: 43 | C208: ='[1]Construction Worksheet'!AQ383 -> 1981800 | D208: F | E208: 4 | F208: =fetchcomment(E208) -> 03-1H9904 03-1H6304 03-2J3204 03-3H6104 | G208: 3 | H208: =fetchcomment(G208) -> A. TEICHERT & SON INC DBA TEICHERT CONSTRUCTION O.C. JONES & SONS, INC. DESILVA GATES CONSTRUCTION LLC | I208: 3
A209: WHITE CAP READY MIX INC | B209: 33 | C209: ='[1]Construction Worksheet'!AQ391 -> 258757.5 | D209: F | E209: 1 | F209: =fetchcomment(E209) -> 02-0J6404 | G209: 1 | H209: =fetchcomment(G209) -> BALDWIN CONTRACTING COMPANY, INC. DBA KNIFE RIVER CONSTRUCTION | I209: 2
... 24 more rows
